fUSD/lending_fUSD_20250214
["ID","MTS","AMOUNT","RATE_DAILY","PERIOD"]
[353032369,1739500238106,-422.97571748,0.0001,2]
[353032370,1739500238118,-12354.70203402,0.0001,2]
[353032377,1739500239959,-2004.69357214,0.0001,2]
[353032378,1739500239971,-508.00324188,0.0001,2]
[353032379,1739500239982,-738.9608181,0.0001,2]
[353032380,1739500240014,-61616.0,0.0001,2]
[353032381,1739500240026,-737.50533136,0.0001,2]
[353032382,1739500240080,-408.38999999,0.0001,2]
[353032383,1739500240092,-477.76,0.0001,2]
[353032384,1739500240182,-804977.61753715,0.0001,2]
[353032385,1739500240192,-101199.44037138,0.0001,2]
[353032386,1739500240202,-200.0,0.0001,3]
[353032387,1739500240211,-23664.07722656,0.0001,2]
[353032388,1739500240221,-6041.0,0.0001,2]
[353032389,1739500240230,-217.61632388,0.0001,2]
[353032390,1739500240240,-176.08345086,0.0001,2]
[353032391,1739500240253,-153.0,0.0001,2]
[353032392,1739500240263,-539731.20938216,0.0001,2]
[353032393,1739500240273,-2100.0,0.0001,3]
[353032394,1739500240283,-173.29256631,0.0001,2]
[353032395,1739500240293,-700.48383,0.0001,2]
[353032396,1739500240302,-381.99149869,0.0001,2]
[353032397,1739500240312,-393.91,0.00010137,2]
[353032398,1739500240322,-216.99,0.00010137,2]
[353032399,1739500240331,-170.2859606,0.0001014,2]
[353032400,1739500240342,-1032.6,0.00010218,2]
[353032401,1739500240352,-485.11,0.00010254,2]
[353032402,1739500240362,-200.0,0.00010257,2]
[353032403,1739500240372,-267.77,0.00010277,2]
[353032404,1739500240382,-392.51601491,0.00010297,2]
[353032405,1739500240392,-1596.24,0.00010305,2]
[353032406,1739500240402,-1062.57477029,0.00010339,2]
[353032407,1739500240411,-200.0,0.00010378,2]
[353032408,1739500240422,-500.0,0.00010379,2]
[353032409,1739500240439,-1500.0,0.00010383,2]
[353032410,1739500240461,-23900.0,0.00010441,2]
[353032411,1739500240472,-459.94,0.00010456,2]
[353032412,1739500240482,-179.34,0.0001049,2]
[353032413,1739500240492,-392.45,0.00010534,2]
[353032414,1739500240506,-150.0,0.00010579,2]
[353032415,1739500240516,-200.0,0.00010579,2]
[353032416,1739500240526,-392.51601491,0.00010607,2]
[353032417,1739500240536,-784.18,0.00010626,2]
[353032418,1739500240546,-500.0,0.000107,2]
[353032419,1739500240556,-1059.0,0.00010883,2]
[353032420,1739500240566,-158.38930769,0.000109,2]
[353032421,1739500240576,-158.38930764,0.000109,2]
[353032422,1739500240585,-158.38930764,0.000109,2]
[353032423,1739500240595,-1531.19,0.00010903,2]
[353032424,1739500240604,-8445.36,0.00010905,2]
[353032425,1739500240613,-250.0,0.00010905,2]
[353032426,1739500240623,-502.67,0.00010927,2]
[353032427,1739500240632,-173.65,0.00010927,2]
[353032428,1739500240642,-151.1,0.00010927,2]
[353032429,1739500240652,-197.44,0.00010928,2]
[353032430,1739500240661,-151.1,0.00010932,2]
[353032431,1739500240670,-151.1,0.00010937,2]
[353032432,1739500240679,-151.1,0.00010943,2]
[353032433,1739500240689,-151.1,0.00010948,2]
[353032434,1739500240699,-151.1,0.00010954,2]
[353032435,1739500240708,-151.1,0.00010959,2]
[353032436,1739500240717,-151.1,0.00010965,2]
[353032437,1739500240727,-1801.81,0.00010966,2]
[353032438,1739500240736,-151.1,0.0001097,2]
[353032439,1739500240746,-151.1,0.00010976,2]
[353032440,1739500240758,-151.1,0.00010981,2]
[353032441,1739500240768,-13987.82,0.00010998,2]
[353032442,1739500240778,-265.8813703,0.00010999,2]
[353032443,1739500240788,-152.0,0.00010999,2]
[353032444,1739500240799,-380.8661,0.00011068,2]
[353032445,1739500240810,-5024.50002866,0.00011099,2]
[353032446,1739500240819,-5024.50002864,0.00011099,2]
[353032447,1739500240828,-5024.50002864,0.00011099,2]
[353032448,1739500240839,-151.0,0.00011099,2]
[353032449,1739500240850,-190.28,0.000111,2]
[353032450,1739500240860,-408.68,0.00011135,2]
[353032451,1739500240872,-193.49,0.00011135,2]
[353032452,1739500240882,-328.94,0.00011135,2]
[353032453,1739500240892,-193.49,0.00011191,2]
[353032454,1739500240902,-421.02,0.00011193,2]
[353032455,1739500240912,-1000.0,0.00011193,2]
[353032456,1739500241072,-2000.0,0.00011193,2]
[353032457,1739500241083,-169.71,0.00011193,2]
[353032458,1739500241092,-350.03567867,0.00011248,2]
[353032459,1739500241102,-168.28,0.00011254,2]
[353032460,1739500241112,-1165.99,0.00011273,2]
[353032461,1739500241123,-999.99,0.00011281,2]
[353032462,1739500241134,-9999.99,0.00011281,2]
[353032463,1739500241144,-9999.99,0.00011281,2]
[353032464,1739500241154,-150.99,0.00011281,2]
[353032465,1739500241164,-1519.17,0.00011281,2]
[353032466,1739500241173,-150.99,0.00011281,2]
[353032467,1739500241182,-1541.0,0.000114,2]
[353032468,1739500241192,-158.38930764,0.000114,2]
[353032469,1739500241201,-1059.0,0.00011456,2]
[353032470,1739500241211,-2751.0,0.00011507,2]
[353032471,1739500241221,-5024.50002864,0.000116,2]
[353032472,1739500241231,-947.0,0.000116,2]
[353032473,1739500241240,-188.5,0.00011643,2]
[353032474,1739500241251,-176.08345084,0.00011684,2]
[353032475,1739500241261,-328.78,0.00011713,2]
[353032476,1739500241271,-328.78,0.00011716,2]
[353032477,1739500241281,-328.78,0.00011719,2]
[353032478,1739500241291,-328.78,0.00011722,2]
[353032479,1739500241301,-328.78,0.00011725,2]
[353032480,1739500241310,-328.78,0.00011728,2]
[353032481,1739500241321,-328.78,0.00011731,2]
[353032482,1739500241331,-328.78,0.00011735,2]
[353032483,1739500241340,-328.78,0.00011738,2]
[353032484,1739500241351,-328.78,0.00011741,2]
[353032485,1739500241360,-328.78,0.00011744,2]
[353032486,1739500241370,-328.78,0.00011747,2]
[353032487,1739500241380,-328.78,0.0001175,2]
[353032488,1739500241390,-328.78,0.00011753,2]
[353032489,1739500241400,-328.78,0.00011756,2]
[353032490,1739500241410,-328.78,0.00011759,2]
[353032491,1739500241421,-328.78,0.00011762,2]
[353032492,1739500241432,-328.78,0.00011765,2]
[353032493,1739500241442,-328.78,0.00011769,2]
[353032494,1739500241451,-328.78,0.00011772,2]
[353032495,1739500241461,-168.28,0.00011874,2]
[353032496,1739500241471,-158.38930764,0.000119,2]
[353032497,1739500241480,-1059.0,0.00012059,2]
[353032498,1739500241490,-151.0,0.00012122,2]
[353032499,1739500241500,-5024.50002864,0.00012167,2]
[353032500,1739500241509,-165.63,0.00012304,2]
[353032501,1739500241519,-151.384925,0.00012329,2]
[353032502,1739500241528,-165.36732,0.00012329,2]
[353032503,1739500241538,-199.232077,0.00012329,2]
[353032504,1739500241548,-199.232077,0.00012329,2]
[353032505,1739500241558,-199.232077,0.00012329,2]
[353032506,1739500241567,-199.232077,0.00012329,2]
[353032507,1739500241577,-1000.0,0.000124,2]
[353032508,1739500241586,-700.48384,0.000124,2]
[353032509,1739500241596,-158.38930764,0.000124,2]
[353032510,1739500241605,-168.28,0.00012493,2]
[353032511,1739500241614,-408.68,0.00012527,2]
[353032512,1739500241624,-168.91222658,0.00012541,7]
[353032513,1739500241633,-47398.2106929,0.00012541,7]
[353032514,1739500241642,-12778.1899486,0.00012541,7]
[353032515,1739500241652,-199.232077,0.00012541,2]
[353032516,1739500241661,-199.232077,0.00012541,2]
[353032517,1739500241671,-1000.0,0.00012592,2]
[353032518,1739500241680,-204.77,0.00012664,2]
[353032519,1739500241690,-151.36,0.00012682,2]
[353032520,1739500241699,-1059.0,0.00012694,2]
[353032521,1739500241708,-199.660761,0.00012694,2]
[353032522,1739500241718,-204.77,0.00012727,2]
[353032523,1739500241728,-5024.50002864,0.00012733,2]
[353032524,1739500241737,-158.38930764,0.000129,2]
[353032525,1739500241747,-550.0,0.00013,2]
[353032526,1739500241759,-150.0,0.00013044,2]
[353032527,1739500241768,-150.0,0.00013044,2]
[353032528,1739500241778,-150.34317794,0.00013044,2]
[353032529,1739500241789,-150.0,0.00013044,2]
[353032530,1739500241802,-150.0,0.00013044,2]
[353032531,1739500241812,-150.0,0.00013063,2]
[353032532,1739500241823,-150.0,0.00013082,2]
[353032533,1739500241834,-150.0,0.00013101,2]
[353032534,1739500241847,-168.28,0.00013112,2]
[353032535,1739500241857,-150.0,0.00013116,2]
[353032536,1739500241866,-150.0,0.0001312,2]
[353032537,1739500241877,-150.0,0.00013129,2]
[353032538,1739500241886,-150.0,0.00013139,2]
[353032539,1739500241895,-150.0,0.00013158,2]
[353032540,1739500241906,-150.0,0.00013177,2]
[353032541,1739500241916,-150.0,0.00013189,2]
[353032542,1739500241925,-150.0,0.00013196,2]
[353032543,1739500241935,-150.0,0.00013214,2]
[353032544,1739500241944,-150.0,0.00013215,2]
[353032545,1739500241953,-150.0,0.00013225,2]
[353032546,1739500241964,-150.0,0.00013235,2]
[353032547,1739500241974,-150.0,0.00013254,2]
[353032548,1739500241984,-150.0,0.00013261,2]
[353032549,1739500241994,-150.0,0.00013273,2]
[353032550,1739500242005,-150.0,0.00013292,2]
[353032551,1739500242014,-150.0,0.000133,2]
[353032552,1739500242023,-5024.50002864,0.000133,2]
[353032553,1739500242032,-150.0,0.00013311,2]
[353032554,1739500242041,-150.0,0.0001333,2]
[353032555,1739500242050,-150.0,0.00013334,2]
[353032556,1739500242059,-150.0,0.00013349,2]
[353032557,1739500242068,-1059.0,0.00013362,2]
[353032558,1739500242078,-150.0,0.00013368,2]
[353032559,1739500242088,-150.0,0.00013385,2]
[353032560,1739500242097,-150.0,0.00013387,2]
[353032561,1739500242107,-158.38930764,0.000134,2]
[353032562,1739500242116,-150.0,0.00013406,2]
[353032563,1739500242125,-150.0,0.00013406,2]
[353032564,1739500242134,-150.0,0.00013406,2]
[353032565,1739500242143,-150.0,0.00013425,2]
[353032566,1739500242152,-150.0,0.00013444,2]
[353032567,1739500242162,-150.0,0.00013463,2]
[353032568,1739500242171,-176.08345084,0.00013467,2]
[353032569,1739500242180,-150.0,0.0001347,2]
[353032570,1739500242189,-150.0,0.00013479,2]
[353032571,1739500242199,-150.0,0.00013482,2]
[353032572,1739500242210,-150.0,0.00013502,2]
[353032573,1739500242220,-150.0,0.00013521,2]
[353032574,1739500242231,-1165.99,0.00013537,2]
[353032575,1739500242241,-150.0,0.0001354,2]
[353032576,1739500242251,-150.0,0.00013551,2]
[353032577,1739500242260,-150.0,0.00013555,2]
[353032578,1739500242270,-150.0,0.00013559,2]
[353032579,1739500242279,-150.0,0.00013578,2]
[353032580,1739500242289,-150.0,0.00013587,2]
[353032581,1739500242299,-150.0,0.00013597,2]
[353032582,1739500242309,-150.0,0.00013616,2]
[353032583,1739500242318,-150.0,0.00013624,2]
[353032584,1739500242328,-150.0,0.00013635,2]
[353032585,1739500242337,-150.0,0.00013641,2]
[353032586,1739500242346,-150.0,0.00013654,2]
[353032587,1739500242356,-150.0,0.00013673,2]
[353032588,1739500242366,-150.0,0.00013692,2]
[353032589,1739500242377,-150.0,0.00013696,2]
[353032590,1739500242387,-500.0,0.00013698,2]
[353032591,1739500242396,-500.52801138,0.00013698,2]
[353032592,1739500242407,-163.85245297,0.00013698,2]
[353032593,1739500242424,-319.04114539,0.00013698,2]
[353032594,1739500242434,-501.61129183,0.00013698,2]
[353032595,1739500242445,-501.40389633,0.00013698,2]
[353032596,1739500242455,-500.42229772,0.00013698,2]
[353032597,1739500242465,-500.29446741,0.00013698,2]
[353032598,1739500242475,-501.27316751,0.00013698,2]
[353032599,1739500242485,-502.00647476,0.00013698,2]
[353032600,1739500242495,-500.3803196,0.00013698,2]
[353032601,1739500242506,-302.74332615,0.00013698,2]
[353032602,1739500242515,-500.71651349,0.00013698,2]
[353032603,1739500242524,-500.0,0.00013698,2]
[353032604,1739500242534,-500.82011411,0.00013698,2]
[353032605,1739500242543,-501.55641522,0.00013698,2]
[353032606,1739500242553,-500.0,0.00013698,2]
[353032607,1739500242563,-501.22967074,0.00013698,2]
[353032608,1739500242574,-501.57148469,0.00013698,2]
[353032609,1739500242585,-364.87736405,0.00013698,2]
[353032610,1739500242596,-504.0413152,0.00013698,2]
[353032611,1739500242607,-545.25734778,0.00013698,2]
[353032612,1739500242617,-501.36280559,0.00013698,2]
[353032613,1739500242628,-501.10277872,0.00013698,2]
[353032614,1739500242638,-500.5362081,0.00013698,2]
[353032615,1739500242649,-502.11780845,0.00013698,2]
[353032616,1739500242660,-501.45820099,0.00013698,2]
[353032617,1739500242670,-591.64328586,0.00013698,2]
[353032619,1739500242679,-501.04177961,0.00013698,2]
[353032620,1739500242688,-500.49203815,0.00013698,2]
[353032621,1739500242697,-500.0,0.00013698,2]
[353032622,1739500242707,-501.32881058,0.00013698,2]
[353032623,1739500242717,-453.88881083,0.00013698,2]
[353032624,1739500242727,-500.36573901,0.00013698,2]
[353032625,1739500242736,-541.69320217,0.00013698,2]
[353032626,1739500242745,-622.00830148,0.00013698,2]
[353032627,1739500242755,-505.36791169,0.00013698,2]
[353032628,1739500242764,-162.36278716,0.00013698,2]
[353032629,1739500242773,-500.0,0.00013698,2]
[353032630,1739500242783,-342.32237146,0.00013698,2]
[353032632,1739500242793,-529.52599413,0.00013698,2]
[353032633,1739500242805,-510.23128369,0.00013698,2]
[353032634,1739500242814,-328.27670124,0.00013698,2]
[353032636,1739500242823,-504.10462956,0.00013698,2]
[353032638,1739500242833,-500.0,0.00013698,2]
[353032641,1739500242845,-538.31029105,0.00013698,2]
[353032643,1739500242854,-506.25024666,0.00013698,2]
[353032645,1739500242865,-505.2055514,0.00013698,2]
[353032646,1739500242876,-507.5744199,0.00013698,2]
[353032648,1739500242886,-508.95289528,0.00013698,2]
[353032650,1739500242895,-506.64501976,0.00013698,2]
[353032652,1739500242903,-509.42791732,0.00013698,2]
[353032653,1739500242912,-500.0,0.00013698,2]
[353032654,1739500242922,-508.94817778,0.00013698,2]
[353032655,1739500242931,-510.17557353,0.00013698,2]
[353032656,1739500242941,-500.0,0.00013698,2]
[353032658,1739500242950,-500.0,0.00013698,2]
[353032659,1739500242959,-506.97986038,0.00013698,2]
[353032661,1739500242969,-500.0,0.00013698,2]
[353032663,1739500242979,-502.27290148,0.00013698,2]
[353032665,1739500242988,-500.0,0.00013698,2]
[353032667,1739500242998,-500.0,0.00013698,2]
[353032669,1739500243008,-505.45478873,0.00013698,2]
[353032670,1739500243018,-503.7116202,0.00013698,2]
[353032671,1739500243027,-210.84755585,0.00013698,2]
[353032672,1739500243036,-515.50816661,0.00013698,2]
[353032673,1739500243045,-504.54158349,0.00013698,2]
[353032674,1739500243054,-500.0,0.00013698,2]
[353032675,1739500243063,-506.38176581,0.00013698,2]
[353032676,1739500243072,-514.68043718,0.00013698,2]
[353032677,1739500243081,-507.21130266,0.00013698,2]
[353032678,1739500243091,-512.93348219,0.00013698,2]
[353032679,1739500243100,-500.0,0.00013698,2]
[353032680,1739500243109,-511.76091449,0.00013698,2]
[353032681,1739500243118,-511.29838077,0.00013698,2]
[353032682,1739500243128,-505.47451113,0.00013698,2]
[353032683,1739500243137,-513.16518842,0.00013698,2]
[353032684,1739500243146,-500.0,0.00013698,2]
[353032685,1739500243155,-512.82577601,0.00013698,2]
[353032686,1739500243165,-511.89014993,0.00013698,2]
[353032687,1739500243174,-512.2832476,0.00013698,2]
[353032688,1739500243183,-457.68145931,0.00013698,2]
[353032689,1739500243192,-509.87096164,0.00013698,2]
[353032690,1739500243202,-268.02195684,0.00013698,2]
[353032691,1739500243211,-509.41852411,0.00013698,2]
[353032692,1739500243221,-505.07849414,0.00013698,2]
[353032693,1739500243230,-523.81614147,0.00013698,2]
[353032694,1739500243239,-500.0,0.00013698,2]
[353032695,1739500243248,-506.02187717,0.00013698,2]
[353032696,1739500243260,-513.35975943,0.00013698,2]
[353032697,1739500243270,-511.32033942,0.00013698,2]
[353032698,1739500243279,-367.10988906,0.00013698,2]
[353032699,1739500243289,-509.16779192,0.00013698,2]
[353032700,1739500243298,-509.56144616,0.00013698,2]
[353032701,1739500243308,-500.0,0.00013698,2]
[353032702,1739500243318,-520.92485775,0.00013698,2]
[353032703,1739500243327,-518.60237385,0.00013698,2]
[353032704,1739500243336,-239.70901546,0.00013698,2]
[353032705,1739500243346,-512.11425055,0.00013698,2]
[353032706,1739500243356,-510.55881461,0.00013698,2]
[353032707,1739500243366,-481.36426942,0.00013698,2]
[353032708,1739500243375,-513.49539144,0.00013698,2]
[353032709,1739500243384,-507.65177447,0.00013698,2]
[353032710,1739500243394,-507.35291808,0.00013698,2]
[353032711,1739500243404,-215.31152826,0.00013698,2]
[353032712,1739500243413,-508.17279939,0.00013698,2]
[353032713,1739500243422,-502.80920828,0.00013698,2]
[353032714,1739500243432,-283.75397252,0.00013698,2]
[353032715,1739500243441,-534.55945656,0.00013698,2]
[353032716,1739500243451,-380.2343533,0.00013698,2]
[353032717,1739500243460,-512.49834327,0.00013698,2]
[353032718,1739500243470,-241.46746649,0.00013698,2]
[353032719,1739500243480,-520.01216326,0.00013698,2]
[353032720,1739500243490,-357.28294019,0.00013698,2]
[353032721,1739500243500,-573.8492503,0.00013698,2]
[353032722,1739500243511,-520.50678971,0.00013698,2]
[353032723,1739500243520,-535.73095588,0.00013698,2]
[353032724,1739500243529,-552.92479703,0.00013698,2]
[353032725,1739500243539,-500.0,0.00013698,2]
[353032726,1739500243549,-527.25346102,0.00013698,2]
[353032727,1739500243558,-534.98921153,0.00013698,2]
[353032728,1739500243568,-500.0,0.00013698,2]
[353032729,1739500243577,-602.9970765,0.00013698,2]
[353032730,1739500243586,-539.66181353,0.00013698,2]
[353032731,1739500243596,-530.19795646,0.00013698,2]
[353032732,1739500243606,-502.6732477,0.00013698,2]
[353032733,1739500243615,-516.7550406,0.00013698,2]
[353032734,1739500243624,-571.3886344,0.00013698,2]
[353032735,1739500243634,-521.84455899,0.00013698,2]
[353032736,1739500243643,-279.59572134,0.00013698,2]
[353032737,1739500243652,-534.46628708,0.00013698,2]
[353032738,1739500243661,-515.94283274,0.00013698,2]
[353032739,1739500243671,-455.57613952,0.00013698,2]
[353032740,1739500243681,-517.53917986,0.00013698,2]
[353032741,1739500243690,-627.76763593,0.00013698,2]
[353032742,1739500243700,-505.98652178,0.00013698,2]
[353032743,1739500243710,-500.0,0.00013698,2]
[353032744,1739500243719,-525.52972722,0.00013698,2]
[353032745,1739500243729,-504.79169016,0.00013698,2]
[353032746,1739500243738,-529.95677246,0.00013698,2]
[353032747,1739500243747,-501.7268658,0.00013698,2]
[353032748,1739500243759,-552.71771882,0.00013698,2]
[353032749,1739500243768,-529.68724156,0.00013698,2]
[353032750,1739500243778,-500.0,0.00013698,2]
[353032751,1739500243789,-500.0,0.00013698,2]
[353032752,1739500243801,-524.90168918,0.00013698,2]
[353032753,1739500243811,-543.1337026,0.00013698,2]
[353032754,1739500243821,-527.43002834,0.00013698,2]
[353032755,1739500243831,-572.27797963,0.00013698,2]
[353032756,1739500243841,-521.41031672,0.00013698,2]
[353032757,1739500243851,-515.08120004,0.00013698,2]
[353032758,1739500243861,-503.26310795,0.00013698,2]
[353032759,1739500243872,-521.98524299,0.00013698,2]
[353032760,1739500243882,-572.03790598,0.00013698,2]
[353032761,1739500243892,-537.60537385,0.00013698,2]
[353032762,1739500243902,-517.71119073,0.00013698,2]
[353032763,1739500243911,-551.32394369,0.00013698,2]
[353032764,1739500243921,-535.39441785,0.00013698,2]
[353032765,1739500243932,-518.53898474,0.00013698,2]
[353032766,1739500243942,-254.13086729,0.00013698,2]
[353032767,1739500243952,-528.90585583,0.00013698,2]
[353032768,1739500243962,-251.09865428,0.00013698,2]
[353032769,1739500243971,-516.06827167,0.00013698,2]
[353032770,1739500243981,-531.47977388,0.00013698,2]
[353032771,1739500243991,-500.0,0.00013698,2]
[353032772,1739500244003,-513.54043969,0.00013698,2]
[353032773,1739500244014,-523.12103192,0.00013698,2]
[353032774,1739500244023,-242.70297252,0.00013698,2]
[353032775,1739500244033,-515.68484289,0.00013698,2]
[353032776,1739500244043,-544.14012805,0.00013698,2]
[353032777,1739500244052,-416.99671954,0.00013698,2]
[353032778,1739500244062,-500.0,0.00013698,2]
[353032779,1739500244071,-514.20065557,0.00013698,2]
[353032780,1739500244080,-590.94610978,0.00013698,2]
[353032781,1739500244090,-396.97251547,0.00013698,2]
[353032782,1739500244099,-539.08524566,0.00013698,2]
[353032783,1739500244109,-500.0,0.00013698,2]
[353032784,1739500244118,-517.69900337,0.00013698,2]
[353032785,1739500244127,-484.77,0.00013698,2]
[353032786,1739500244136,-425.33492923,0.00013698,2]
[353032787,1739500244146,-538.49976238,0.00013698,2]
[353032788,1739500244155,-570.74,0.00013698,2]
[353032789,1739500244165,-504.78790396,0.00013698,2]
[353032790,1739500244174,-500.0,0.00013698,2]
[353032791,1739500244183,-632.57374279,0.00013698,2]
[353032792,1739500244192,-455.36855392,0.00013698,2]
[353032793,1739500244202,-500.0,0.00013698,2]
[353032794,1739500244211,-500.0,0.00013698,2]
[353032795,1739500244221,-504.89396881,0.00013698,2]
[353032796,1739500244230,-500.0,0.00013698,2]
[353032797,1739500244350,-502.33935311,0.00013698,2]
[353032798,1739500244360,-279.46668732,0.00013698,2]
[353032799,1739500244369,-500.0,0.00013698,2]
[353032800,1739500244378,-500.0,0.00013698,2]
[353032801,1739500244387,-500.0,0.00013698,2]
[353032802,1739500244397,-518.3698974,0.00013698,2]
[353032803,1739500244406,-500.0,0.00013698,2]
[353032804,1739500244416,-531.6669273,0.00013698,2]
[353032805,1739500244426,-234.45306401,0.00013698,2]
[353032806,1739500244435,-523.18968782,0.00013698,2]
[353032807,1739500244445,-511.26016728,0.00013698,2]
[353032808,1739500244455,-500.0,0.00013698,2]
[353032809,1739500244465,-217.88586096,0.00013698,2]
[353032810,1739500244474,-500.0,0.00013698,2]
[353032811,1739500244483,-500.0,0.00013698,2]
[353032812,1739500244494,-500.0,0.00013698,2]
[353032813,1739500244503,-500.0,0.00013698,2]
[353032814,1739500244513,-500.0,0.00013698,2]
[353032815,1739500244523,-425.31052447,0.00013698,2]
[353032816,1739500244532,-521.91018454,0.00013698,2]
[353032817,1739500244542,-500.0,0.00013698,2]
[353032818,1739500244552,-509.27067774,0.00013698,2]
[353032819,1739500244563,-500.0,0.00013698,2]
[353032820,1739500244572,-537.96680843,0.00013698,2]
[353032821,1739500244581,-550.72941755,0.00013698,2]
[353032822,1739500244590,-517.34188538,0.00013698,2]
[353032823,1739500244599,-500.0,0.00013698,2]
[353032824,1739500244611,-500.0,0.00013698,2]
[353032825,1739500244620,-500.0,0.00013698,2]
[353032826,1739500244630,-534.34122674,0.00013698,2]
[353032827,1739500244640,-500.0,0.00013698,2]
[353032828,1739500244650,-500.0,0.00013698,2]
[353032829,1739500244661,-500.0,0.00013698,2]
[353032830,1739500244671,-1187.28,0.00013698,2]
[353032831,1739500244680,-500.0,0.00013698,2]
[353032832,1739500244689,-537.6752642,0.00013698,2]
[353032833,1739500244698,-500.0,0.00013698,2]
[353032834,1739500244708,-500.0,0.00013698,7]
[353032835,1739500244718,-526.48518369,0.00013698,2]
[353032836,1739500244729,-500.0,0.00013698,2]
[353032837,1739500244740,-546.58438979,0.00013698,2]
[353032838,1739500244751,-500.0,0.00013698,2]
[353032839,1739500244760,-500.0,0.00013698,2]
[353032840,1739500244770,-528.20695799,0.00013698,2]
[353032841,1739500244781,-520.61227018,0.00013698,2]
[353032842,1739500244796,-483.1856884,0.00013698,2]
[353032843,1739500244807,-520.76711486,0.00013698,2]
[353032844,1739500244816,-500.0,0.00013698,2]
[353032845,1739500244826,-525.12012835,0.00013698,2]
[353032846,1739500244836,-518.60788948,0.00013698,2]
[353032847,1739500244845,-500.0,0.00013698,2]
[353032848,1739500244854,-527.46598239,0.00013698,2]
[353032849,1739500244864,-500.0,0.00013698,2]
[353032850,1739500244873,-500.0,0.00013698,2]
[353032851,1739500244885,-520.14587011,0.00013698,2]
[353032852,1739500244895,-500.0,0.00013698,2]
[353032853,1739500244905,-500.0,0.00013698,2]
[353032854,1739500244915,-551.1506287,0.00013698,2]
[353032855,1739500244926,-270.08300971,0.00013698,2]
[353032856,1739500244937,-163.170563,0.00013698,2]
[353032857,1739500244947,-629.27270376,0.00013698,2]
[353032858,1739500244960,-500.0,0.00013698,2]
[353032859,1739500244971,-500.0,0.00013698,2]
[353032860,1739500244982,-500.0,0.00013698,2]
[353032861,1739500244992,-538.51197918,0.00013698,2]
[353032862,1739500245002,-518.83785723,0.00013698,2]
[353032863,1739500245012,-500.0,0.00013698,2]
[353032864,1739500245021,-521.79503514,0.00013698,2]
[353032865,1739500245032,-500.0,0.00013698,2]
[353032866,1739500245041,-500.0,0.00013698,2]
[353032867,1739500245050,-523.07781472,0.00013698,2]
[353032868,1739500245060,-535.23274709,0.00013698,2]
[353032869,1739500245069,-500.0,0.00013698,2]
[353032870,1739500245078,-504.1279,0.00013698,2]
[353032871,1739500245087,-500.0,0.00013698,2]
[353032872,1739500245096,-563.55842476,0.00013698,2]
[353032873,1739500245106,-563.13975276,0.00013698,2]
[353032874,1739500245115,-500.0,0.00013698,2]
[353032875,1739500245124,-520.56133318,0.00013698,2]
[353032876,1739500245133,-500.0,0.00013698,2]
[353032877,1739500245142,-4821.34574691,0.00013698,2]
[353032878,1739500245151,-1039.22519416,0.00013698,2]
[353032879,1739500245160,-526.88199192,0.00013698,2]
[353032880,1739500245170,-500.0,0.00013698,2]
[353032881,1739500245179,-521.19891309,0.00013698,2]
[353032882,1739500245189,-177.87006921,0.00013698,2]
[353032883,1739500245198,-512.80153277,0.00013698,2]
[353032884,1739500245207,-500.0,0.00013698,2]
[353032885,1739500245217,-500.0,0.00013698,2]
[353032886,1739500245226,-512.25579508,0.00013698,2]
[353032887,1739500245235,-500.0,0.00013698,2]
[353032888,1739500245244,-536.69567694,0.00013698,2]
[353032889,1739500245254,-510.22798612,0.00013698,2]
[353032890,1739500245264,-500.0,0.00013698,2]
[353032891,1739500245273,-508.84698806,0.00013698,2]